bitfinex/quotes_BTCUSD_20251208
["timestamp","ask_amount","ask_price","bid_price","bid_amount"]
[1765152946239,0.00161287,90170.0,90167.0,0.02665053]
[1765152946437,0.007,90168.0,90167.0,0.02665053]
[1765152946843,0.007,90168.0,90167.0,0.01556]
[1765152947049,0.01270303,90170.0,90167.0,0.01556]
[1765152947253,0.01970303,90170.0,90167.0,0.01556]
[1765152947590,0.033,90168.0,90167.0,0.01956]
[1765152948104,0.01970303,90170.0,90167.0,0.01556]
[1765152948448,0.04670303,90170.0,90167.0,0.01956]
[1765152948650,0.01270303,90170.0,90167.0,0.01556]
[1765152948870,0.007,90168.0,90167.0,0.01556]
[1765152949048,0.04,90168.0,90167.0,0.01956]
[1765152949385,0.033,90168.0,90167.0,0.04446]
[1765152950351,0.01108991,90172.0,90169.0,0.01109028]
[1765152950555,0.034,90170.0,90169.0,0.01109028]
[1765152950951,0.01108991,90172.0,90169.0,0.01109028]
[1765152951754,0.03,90170.0,90169.0,0.01409028]
[1765152952184,0.01108991,90172.0,90169.0,0.01109028]
[1765152952421,0.01108979,90173.0,90171.0,0.01155]
[1765152952634,0.23288604,90173.0,90171.0,0.01155]
[1765152952756,0.2328939,90170.0,90166.0,0.01109065]
[1765152952972,0.01109016,90170.0,90166.0,0.23290291]
[1765152953380,0.01109016,90170.0,90167.0,0.01109053]
[1765152954018,0.01109016,90170.0,90169.0,0.003]
[1765152954217,0.01109028,90169.0,90166.0,0.01109065]
[1765152954469,0.23289858,90168.0,90167.0,0.003]
[1765152954996,0.01109053,90167.0,90164.0,0.0110909]
[1765152955211,0.01109028,90169.0,90166.0,0.01109065]
[1765152955642,0.0110904,90168.0,90165.0,0.01109077]
[1765152955878,0.038,90168.0,90167.0,0.003]
[1765152956340,0.033,90168.0,90167.0,0.003]
[1765152956840,0.033,90168.0,90167.0,0.22481064]
[1765152957076,0.005,90169.0,90167.0,0.22181064]
[1765152957300,0.038,90169.0,90167.0,0.22181064]
[1765152957505,0.005,90169.0,90168.0,0.1251638]
[1765152957713,0.005,90169.0,90168.0,0.10298299]
[1765152957922,0.01108942,90176.0,90171.0,0.01109004]
[1765152957923,0.01108967,90174.0,90171.0,0.01109004]
[1765152958396,0.01108967,90174.0,90160.0,0.05196494]
[1765152958397,0.2218008,90171.0,90170.0,0.06252299]
[1765152958593,0.22180818,90168.0,90167.0,0.003]
[1765152958816,0.22183524,90157.0,90154.0,0.02975621]
[1765152959016,0.22185,90151.0,90146.0,0.03447621]
[1765152959228,0.01109225,90153.0,90149.0,0.01109274]
[1765152959824,0.01109225,90153.0,90150.0,0.01109262]
[1765152960365,0.23293991,90152.0,90147.0,0.01109299]
[1765152960535,0.01109262,90150.0,90149.0,0.001]
[1765152960945,0.01109262,90150.0,90146.0,0.01581311]
[1765152961133,0.01109262,90150.0,90149.0,0.002]
[1765152961531,0.01109237,90152.0,90148.0,0.01109286]
[1765152961897,0.002,90150.0,90149.0,0.01209274]
[1765152962107,0.003,90150.0,90149.0,0.01409274]
[1765152962464,0.002,90150.0,90149.0,0.001]
[1765152962662,0.01851,90150.0,90149.0,0.001]
[1765152962830,0.02989,90150.0,90149.0,0.001]
[1765152963029,0.22185492,90149.0,90148.0,0.002]
[1765152963441,0.01738,90150.0,90148.0,0.002]
[1765152963715,0.006,90150.0,90149.0,0.039]
[1765152963934,0.006,90150.0,90149.0,0.01557]
[1765152964156,0.23295368,90147.0,90144.0,0.02975621]
[1765152964359,0.23296059,90144.0,90141.0,0.02975621]
[1765152964578,0.23298126,90136.0,90130.0,0.02975621]
[1765152964707,0.23298992,90133.0,90130.0,0.02975621]
[1765152964919,0.25305464,90131.0,90128.0,0.02975621]
[1765152965116,0.01109508,90130.0,90127.0,0.02975621]
[1765152965318,0.03115496,90131.0,90127.0,0.04085166]
[1765152965523,0.01109483,90132.0,90129.0,0.0110952]
[1765152965887,0.01109446,90135.0,90131.0,0.01109496]
[1765152966040,0.01109459,90134.0,90131.0,0.01109496]
[1765152966454,0.02295,90140.0,90131.0,0.01109496]
[1765152966455,0.02247373,90141.0,90135.0,0.23298273]
[1765152966654,0.01109373,90141.0,90140.0,0.01557]
[1765152966855,0.01109483,90132.0,90129.0,0.0110952]
[1765152967257,0.03404483,90132.0,90131.0,0.003]
[1765152967603,0.03404483,90132.0,90122.0,0.00023932]
[1765152967604,0.22191817,90124.0,90122.0,0.00023932]
[1765152967740,0.01651,90123.0,90122.0,0.00023932]
[1765152967942,0.03946,90123.0,90122.0,0.00023932]
[1765152968823,0.04107287,90123.0,90122.0,0.00223932]
[1765152969960,0.06907287,90123.0,90122.0,0.00523932]
[1765152970165,0.06907287,90123.0,90122.0,0.00323932]
[1765152970586,0.07407287,90123.0,90122.0,0.00323932]
[1765152972541,0.09163287,90123.0,90122.0,0.00323932]
[1765152973876,0.19291674,90123.0,90122.0,0.00323932]
[1765152974088,0.21511273,90123.0,90122.0,0.00323932]
[1765152974438,0.11382886,90123.0,90122.0,0.00323932]
[1765152974640,0.09163287,90123.0,90122.0,0.00323932]
[1765152976126,0.05112287,90123.0,90122.0,0.00323932]
[1765152976329,0.09001287,90123.0,90122.0,0.00323932]
[1765152976763,0.11220886,90123.0,90122.0,0.00323932]
[1765152976964,0.09464886,90123.0,90122.0,0.00323932]
[1765152977194,0.11220886,90123.0,90122.0,0.00323932]
[1765152978824,0.09001287,90123.0,90122.0,0.00323932]
[1765152979911,0.07245287,90123.0,90122.0,0.00323932]
[1765152980122,0.09001287,90123.0,90122.0,0.00323932]
[1765152980326,0.07245287,90123.0,90122.0,0.00323932]
[1765152980874,0.03461287,90123.0,90122.0,0.00323932]
[1765152981117,0.05217287,90123.0,90122.0,0.00323932]
[1765152982346,0.03461287,90123.0,90122.0,0.00323932]
[1765152982549,0.033,90123.0,90122.0,0.00323932]
[1765152983001,0.04809,90123.0,90122.0,0.00323932]
[1765152983207,0.07084,90123.0,90122.0,0.00323932]
[1765152983448,0.09303599,90123.0,90122.0,0.00323932]
[1765152984095,0.07084,90123.0,90122.0,0.00323932]
[1765152984319,0.033,90123.0,90122.0,0.00323932]
[1765152984515,0.033,90123.0,90122.0,0.04382932]
[1765152984717,0.033,90123.0,90122.0,0.10635231]
[1765152985749,0.07084,90123.0,90122.0,0.00323932]
[1765152986174,0.04809,90123.0,90122.0,0.00323932]
[1765152986381,0.07084,90123.0,90122.0,0.00323932]
[1765152988904,0.0884,90123.0,90122.0,0.00323932]
[1765152989709,0.033,90123.0,90122.0,0.01984932]
[1765152990101,0.07084,90123.0,90122.0,0.00323932]
[1765152990249,0.07245287,90123.0,90122.0,0.00323932]
[1765152990439,0.09464886,90123.0,90122.0,0.00323932]
[1765152996403,0.41764886,90123.0,90122.0,0.00323932]
[1765152996534,0.41764886,90123.0,90100.0,0.0004]
[1765152996535,0.22194848,90111.0,90100.0,0.0004]
[1765152996742,0.58924848,90111.0,90100.0,0.0004]
[1765152996949,0.59443848,90111.0,90100.0,0.0004]
[1765152997146,0.61199848,90111.0,90100.0,0.0004]
[1765152997344,0.59443848,90111.0,90100.0,0.0004]
[1765152997602,0.27143848,90111.0,90100.0,0.0004]
[1765152997758,0.28899848,90111.0,90100.0,0.01149877]
[1765152998281,0.28899848,90111.0,90101.0,0.01109865]
[1765152998456,0.30799848,90111.0,90110.0,0.0044]
[1765152998670,0.28524848,90111.0,90110.0,0.0044]
[1765152998907,0.30799848,90111.0,90110.0,0.0044]
[1765152999038,0.31399848,90111.0,90110.0,0.0044]
[1765152999238,0.29499848,90111.0,90110.0,0.0004]
[1765152999478,0.26568848,90111.0,90110.0,0.0044]
[1765152999683,0.28324848,90111.0,90110.0,0.0044]
[1765152999855,0.31099848,90111.0,90110.0,0.0044]
[1765153002293,0.31099848,90111.0,90110.0,0.00475906]
[1765153003048,0.390926,90111.0,90110.0,0.00475906]
[1765153004771,0.31099848,90111.0,90110.0,0.00475906]
[1765153006825,0.28824848,90111.0,90110.0,0.00475906]
[1765153007603,0.25559848,90111.0,90110.0,0.00475906]
[1765153007816,0.27315848,90111.0,90110.0,0.00475906]
[1765153008020,0.26150848,90111.0,90110.0,0.00475906]
[1765153008685,0.022,90111.0,90110.0,0.04519906]
[1765153009130,0.24394848,90111.0,90110.0,0.04519906]
[1765153009753,0.24394848,90111.0,90110.0,0.02030906]
[1765153009966,0.24394848,90111.0,90110.0,0.00475906]
[1765153011432,0.24394848,90111.0,90110.0,0.02030906]
[1765153013435,0.24394848,90111.0,90110.0,0.00475906]
[1765153016750,0.022,90111.0,90110.0,0.04559088]
[1765153016923,0.022,90111.0,90110.0,0.00515088]
[1765153018285,0.022,90111.0,90110.0,0.26754182]
[1765153021546,0.022,90111.0,90110.0,0.33006481]
[1765153021875,0.022,90111.0,90110.0,0.65306481]
[1765153022023,0.022,90111.0,90110.0,0.67525481]
[1765153022433,0.017,90111.0,90110.0,0.67525481]
[1765153022828,0.018,90111.0,90110.0,0.67625481]
[1765153023253,0.017,90111.0,90110.0,0.67525481]
[1765153023474,0.018,90111.0,90110.0,0.67625481]
[1765153023797,0.001,90111.0,90110.0,0.67225481]
[1765153024218,0.006,90111.0,90110.0,0.67725481]
[1765153024455,0.001,90111.0,90110.0,0.67225481]
[1765153024654,0.01109225,90153.0,90150.0,0.01109262]
[1765153024864,0.01109225,90153.0,90148.0,0.01109286]
[1765153024865,0.01109237,90152.0,90148.0,0.01109286]
[1765153025070,0.22185,90151.0,90146.0,0.01215]
[1765153025284,0.01109262,90150.0,90146.0,0.01215]
[1765153025498,0.01109274,90149.0,90146.0,0.04593311]
[1765153025684,0.01109262,90150.0,90146.0,0.04593311]
[1765153025830,0.23304759,90149.0,90146.0,0.01215]
[1765153026044,0.23304759,90149.0,90147.0,0.02269]
[1765153026854,0.23304759,90149.0,90148.0,0.01641]
[1765153027067,0.01719267,90149.0,90148.0,0.01641]
[1765153027476,0.01719267,90149.0,90148.0,0.0391]
[1765153028026,0.03019267,90149.0,90148.0,0.0391]
[1765153028221,0.23904759,90149.0,90148.0,0.0391]
[1765153028423,0.23304759,90149.0,90148.0,0.0391]
[1765153028626,0.24604759,90149.0,90148.0,0.01841]
[1765153028835,0.25204759,90149.0,90148.0,0.01841]
[1765153029199,0.24604759,90149.0,90148.0,0.01841]
[1765153029612,0.25204759,90149.0,90148.0,0.01841]
[1765153030025,0.26777759,90149.0,90148.0,0.002]
[1765153030231,0.26939046,90149.0,90148.0,0.002]
[1765153030450,0.29327046,90149.0,90148.0,0.002]
[1765153033732,0.3748425,90149.0,90148.0,0.002]
[1765153033962,0.31546645,90149.0,90148.0,0.002]
[1765153034160,0.63846645,90149.0,90148.0,0.002]
[1765153035055,1.79613945,90149.0,90148.0,0.002]
[1765153035260,1.80313945,90149.0,90148.0,0.002]
[1765153036290,0.23302829,90118.0,90114.0,0.01133641]
[1765153036837,0.23303266,90117.0,90114.0,0.00023936]
[1765153037193,0.01109656,90118.0,90114.0,0.00023936]
[1765153037400,9.987e-05,90118.0,90117.0,0.02639668]
[1765153037596,0.00609987,90118.0,90117.0,0.02639668]
[1765153037808,0.00709987,90118.0,90117.0,0.04962668]
[1765153038029,0.00109987,90118.0,90117.0,0.03853]
[1765153038376,0.00609987,90118.0,90117.0,0.03853]
[1765153038646,0.00709987,90118.0,90117.0,0.03853]
[1765153039238,0.22903111,90118.0,90117.0,0.0153]
[1765153039437,0.01109668,90117.0,90114.0,0.00023936]
[1765153039642,0.23303258,90117.0,90114.0,0.00023936]
[1765153039840,0.01109668,90117.0,90114.0,0.00023936]
[1765153040045,0.00709987,90118.0,90116.0,0.0153]
[1765153040290,0.00709987,90118.0,90117.0,0.0153]
[1765153040494,0.00109987,90118.0,90117.0,0.0153]
[1765153040718,9.987e-05,90118.0,90117.0,0.03853]
[1765153041424,0.00609987,90118.0,90117.0,0.2604637]
[1765153041653,0.00609987,90118.0,90117.0,0.03853]
[1765153041855,0.00709987,90118.0,90117.0,0.03853]
[1765153043496,0.00709987,90118.0,90117.0,0.10105299]
[1765153047964,0.00709987,90118.0,90117.0,0.43666298]
[1765153048116,0.00709987,90118.0,90117.0,0.42405299]
[1765153049238,0.00109987,90118.0,90117.0,0.42405299]
[1765153049452,0.00809987,90118.0,90117.0,0.42405299]
[1765153049667,0.00709987,90118.0,90117.0,0.42405299]
[1765153050100,0.00809987,90118.0,90117.0,0.42805299]
[1765153050309,0.00109987,90118.0,90117.0,0.42805299]
[1765153050516,9.987e-05,90118.0,90117.0,0.42405299]
[1765153050723,0.00609987,90118.0,90117.0,0.42405299]
[1765153050924,0.00109987,90118.0,90117.0,0.42805299]
[1765153051428,9.987e-05,90118.0,90117.0,0.42405299]
[1765153051637,0.00109987,90118.0,90117.0,0.43105299]
[1765153052167,0.00309987,90118.0,90117.0,0.43605299]
[1765153052366,0.00109987,90118.0,90117.0,0.43105299]
[1765153052840,0.00309987,90118.0,90117.0,0.44005299]
[1765153054325,0.00309987,90118.0,90117.0,0.47235299]
[1765153056308,0.01109139,90160.0,90154.0,0.01109213]
[1765153056529,0.01109163,90158.0,90155.0,0.01207]
[1765153056731,0.22184508,90153.0,90152.0,0.01207]
[1765153056950,0.01109274,90149.0,90147.0,0.01207]
[1765153057375,0.01109274,90149.0,90147.0,0.0353]
[1765153057827,0.23295284,90147.0,90141.0,0.01109373]
[1765153058031,0.0110936,90142.0,90138.0,0.01207]
[1765153058492,0.0110936,90142.0,90138.0,0.0353]
[1765153058714,0.01109373,90141.0,90138.0,0.0353]
[1765153058914,0.0110936,90142.0,90138.0,0.0231641]
[1765153059067,0.0110936,90142.0,90141.0,0.003]
[1765153059297,0.01109311,90146.0,90142.0,0.0110936]
[1765153059510,0.01109311,90146.0,90142.0,0.0263936]
[1765153059664,0.232958,90145.0,90142.0,0.0153]
[1765153059866,0.22186969,90143.0,90142.0,0.0153]
[1765153060444,0.01109274,90149.0,90142.0,0.03853]
[1765153060668,0.0110925,90151.0,90148.0,0.01796]
[1765153061026,0.01109225,90153.0,90148.0,0.25091009]
[1765153061220,0.01109225,90153.0,90149.0,0.02323]
[1765153061221,0.01109237,90152.0,90149.0,0.02323]
[1765153062080,0.01109176,90157.0,90153.0,0.01109225]
[1765153062282,0.232927,90157.0,90156.0,0.01158]
[1765153062481,0.23294018,90152.0,90149.0,0.02323]
[1765153062639,0.01109237,90152.0,90149.0,0.03432274]
[1765153062840,0.029,90152.0,90151.0,0.01527]
[1765153063067,0.035,90152.0,90151.0,0.01527]
[1765153063247,0.006,90152.0,90151.0,0.0384]
[1765153063444,0.006,90152.0,90151.0,0.26025]
[1765153063662,0.01108967,90174.0,90159.0,0.22183032]
[1765153063866,0.01108942,90176.0,90159.0,0.31120331]
[1765153064071,0.01108905,90179.0,90159.0,0.33433331]
[1765153064275,0.01108893,90180.0,90159.0,0.33433331]
[1765153064500,0.01108868,90182.0,90159.0,0.65733331]
[1765153064709,0.01108893,90180.0,90159.0,0.65733331]
[1765153064928,0.22178368,90178.0,90159.0,0.65733331]
[1765153065101,0.00210037,90160.0,90159.0,0.65833331]
[1765153065306,0.00010037,90160.0,90159.0,0.65733331]
[1765153065712,0.00110037,90160.0,90159.0,0.66333331]
[1765153066306,0.00210037,90160.0,90159.0,0.66833331]
[1765153067265,0.00210037,90160.0,90159.0,0.7079783]
[1765153067516,0.00210037,90160.0,90159.0,0.66833331]
[1765153068334,0.00210037,90160.0,90159.0,0.70796817]
[1765153068710,0.00210037,90160.0,90159.0,0.66833331]
[1765153069526,0.00210037,90160.0,90159.0,0.70103331]
[1765153077497,0.01178,90208.0,90195.0,0.06252299]
[1765153077663,0.01108561,90207.0,90199.0,0.00628]
[1765153077865,0.01108573,90206.0,90199.0,0.00628]
[1765153078101,0.01108573,90206.0,90200.0,0.01158]
[1765153078355,0.01281635,90208.0,90200.0,0.01158]
[1765153078557,0.01281635,90208.0,90205.0,0.01527]
[1765153078944,0.015,90207.0,90205.0,0.01527]
[1765153079147,0.22172949,90200.0,90199.0,0.002]
[1765153079271,0.23281306,90202.0,90199.0,0.002]
[1765153079890,0.01108635,90201.0,90193.0,0.07410299]
[1765153080092,0.01108635,90201.0,90194.0,0.06252299]
[1765153080298,0.01108647,90200.0,90194.0,0.06252299]
[1765153080521,0.01108635,90201.0,90194.0,0.06252299]
[1765153080729,0.001,90206.0,90200.0,0.02685]
[1765153080930,0.005,90202.0,90200.0,0.01158]
[1765153081185,0.01108647,90200.0,90194.0,0.06252299]
[1765153081401,0.22174178,90195.0,90194.0,0.004]
[1765153081602,0.24873178,90195.0,90194.0,0.006]
[1765153081732,0.23285639,90185.0,90182.0,0.0327]
[1765153081945,0.01108856,90183.0,90180.0,0.00628]
[1765153082150,0.01108844,90184.0,90180.0,0.00628]
[1765153082529,0.01108917,90178.0,90171.0,0.01158]
[1765153082733,0.01108954,90175.0,90171.0,0.01158]
[1765153082933,0.01108967,90174.0,90171.0,0.01158]
[1765153083204,0.01108917,90178.0,90172.0,0.02313]
[1765153083445,0.23287845,90176.0,90173.0,0.01527]
[1765153083592,0.23288309,90174.0,90171.0,0.01158]
[1765153083771,0.01108967,90174.0,90171.0,0.01358]
[1765153083975,0.01108954,90175.0,90171.0,0.03597]
[1765153084201,0.01108967,90174.0,90171.0,0.03597]
[1765153084373,0.23288331,90174.0,90172.0,0.002]
[1765153084619,0.23288331,90174.0,90173.0,0.004]
[1765153085019,0.008,90174.0,90171.0,0.03697]
[1765153085226,0.008,90174.0,90173.0,0.0165]
[1765153085434,0.009,90174.0,90173.0,0.0165]
[1765153085608,0.009,90174.0,90173.0,0.04089]
[1765153086073,0.001,90174.0,90173.0,0.04089]
[1765153086455,0.008,90174.0,90173.0,0.04089]
[1765153086638,0.01108942,90176.0,90173.0,0.04089]
[1765153086841,0.01108942,90176.0,90173.0,0.04289]
[1765153087095,0.008,90174.0,90173.0,0.003]
[1765153087560,0.008,90174.0,90173.0,0.0175]
[1765153087756,0.01108917,90178.0,90173.0,0.04089]
[1765153087980,0.01108917,90178.0,90173.0,0.04289]
[1765153088178,0.008,90176.0,90174.0,0.02439]
[1765153088569,0.008,90176.0,90175.0,0.0165]
[1765153089094,0.008,90176.0,90175.0,0.06306909]
[1765153089289,0.01108893,90180.0,90175.0,0.06306909]
[1765153089500,0.01126,90216.0,90175.0,0.06306909]
[1765153089501,0.01108807,90187.0,90179.0,0.02758905]
[1765153089661,0.00011795,90187.0,90180.0,0.03867786]
[1765153089862,0.00011795,90187.0,90186.0,0.02278]
[1765153090107,0.02008942,90176.0,90175.0,0.001]
[1765153090365,0.02008942,90176.0,90171.0,0.01158]
[1765153090366,0.22179775,90173.0,90172.0,0.06252299]
[1765153091011,0.22179775,90173.0,90167.0,0.03432]
[1765153091012,0.22179775,90173.0,90167.0,0.00993]
[1765153091221,0.01109016,90170.0,90167.0,0.00993]
[1765153091419,0.0110904,90168.0,90165.0,0.06252299]
[1765153091571,0.23289376,90170.0,90165.0,0.06252299]
[1765153091769,0.01108991,90172.0,90169.0,0.01613]
[1765153092859,0.01108954,90175.0,90171.0,0.02061]
[1765153093054,0.01108954,90175.0,90172.0,0.01613]
[1765153093280,0.001,90173.0,90172.0,0.01613]
[1765153093643,0.01108954,90175.0,90172.0,0.01613]
[1765153093844,0.01108954,90175.0,90172.0,0.04096]
[1765153094044,0.02008954,90175.0,90172.0,0.04096]
[1765153094401,0.02008954,90175.0,90172.0,0.01613]
[1765153094527,0.01908954,90175.0,90172.0,0.04096]
[1765153095142,0.01908954,90175.0,90174.0,0.01613]
[1765153095143,0.008,90175.0,90174.0,0.01613]
[1765153095516,0.01108893,90180.0,90174.0,0.01613]
[1765153095793,0.009,90175.0,90174.0,0.01613]
[1765153096204,0.009,90175.0,90174.0,0.04096]
[1765153096404,0.01108856,90183.0,90175.0,0.06252299]
[1765153096605,0.01108856,90183.0,90182.0,0.02776]
[1765153096980,0.23285984,90183.0,90182.0,0.02776]
[1765153097212,0.23285984,90183.0,90182.0,0.01163]
[1765153097373,0.23287173,90179.0,90177.0,0.07454299]
[1765153097577,0.22179096,90175.0,90174.0,0.001]
[1765153097825,0.22179096,90175.0,90174.0,0.06352299]
[1765153098207,0.22179784,90173.0,90171.0,0.03428323]
[1765153098594,0.01108967,90174.0,90172.0,0.01613]
[1765153098790,0.01108942,90176.0,90173.0,0.04096]
[1765153099056,0.01108942,90176.0,90174.0,0.01613]
[1765153099194,0.009,90175.0,90174.0,0.01713]
[1765153099617,0.01108942,90176.0,90174.0,0.04096]
[1765153099823,0.22179096,90175.0,90174.0,0.01613]
[1765153100031,0.22179096,90175.0,90173.0,0.001]
[1765153100354,0.01108967,90174.0,90171.0,0.03428323]
[1765153100548,0.01108967,90174.0,90171.0,0.05911323]
[1765153101862,0.01108967,90174.0,90173.0,0.01613]
[1765153102007,0.01908967,90174.0,90173.0,0.01613]
[1765153102225,0.01908967,90174.0,90173.0,0.04496]
[1765153102756,0.01908967,90174.0,90173.0,0.04096]
[1765153102970,0.01208967,90174.0,90173.0,0.04496]
[1765153103166,0.02008967,90174.0,90173.0,0.04596]
[1765153103613,0.009,90174.0,90173.0,0.04596]
[1765153104991,0.009,90174.0,90173.0,0.02113]
[1765153105578,0.009,90174.0,90173.0,0.005]
[1765153106572,0.05038287,90174.0,90173.0,0.005]
[1765153106774,0.02585287,90174.0,90173.0,0.005]
[1765153106974,0.01061287,90174.0,90173.0,0.005]
[1765153107186,0.009,90174.0,90173.0,0.10848299]
[1765153107394,0.009,90174.0,90173.0,0.33027887]
[1765153107944,0.009,90174.0,90173.0,0.10848299]
[1765153108266,0.009,90174.0,90173.0,0.09736741]
[1765153108483,0.04877,90174.0,90173.0,0.06752299]
[1765153109045,0.02585287,90174.0,90173.0,0.005]
[1765153109247,0.05038287,90174.0,90173.0,0.005]
[1765153110040,0.12751983,90174.0,90173.0,0.005]
[1765153110497,0.07257886,90174.0,90173.0,0.005]
[1765153111126,0.01109188,90156.0,90153.0,0.01163]
[1765153111662,0.22184262,90154.0,90153.0,0.07415299]
[1765153111867,0.01109274,90149.0,90146.0,0.0395852]
[1765153112247,0.22186477,90145.0,90142.0,0.0395852]
[1765153112455,0.22186477,90145.0,90142.0,0.00010037]
[1765153112456,0.23296317,90143.0,90142.0,0.00010037]
[1765153114531,0.23396317,90143.0,90142.0,0.00510037]
[1765153114759,0.004,90143.0,90142.0,0.03523037]
[1765153115052,0.004,90143.0,90142.0,0.06006037]
[1765153116984,0.004,90143.0,90142.0,0.14477057]
[1765153117215,0.004,90143.0,90142.0,0.12258336]
[1765153117487,0.004,90143.0,90142.0,0.34445551]
[1765153118127,0.004,90143.0,90142.0,0.12258336]
[1765153118375,0.004,90143.0,90142.0,0.09775336]
[1765153118760,0.004,90143.0,90142.0,0.12258336]
[1765153120111,0.22586969,90143.0,90142.0,0.08162336]
[1765153120410,0.004,90143.0,90142.0,0.01910037]
[1765153120619,0.004,90143.0,90142.0,0.03523037]
[1765153120963,0.004,90143.0,90142.0,0.06006037]
[1765153122353,0.004,90143.0,90142.0,0.01910037]
[1765153122570,0.004,90143.0,90142.0,0.05960037]
[1765153123185,0.004,90143.0,90142.0,0.03529037]
[1765153124160,0.004,90143.0,90142.0,0.01910037]
[1765153124368,0.004,90143.0,90142.0,0.03529037]
[1765153124576,0.004,90143.0,90142.0,0.05960037]
[1765153125211,0.004,90143.0,90142.0,0.03529037]
[1765153126544,0.22586969,90143.0,90142.0,0.01910037]
[1765153126754,0.27708969,90143.0,90142.0,0.01910037]
[1765153128439,0.35471726,90143.0,90142.0,0.01910037]
[1765153128673,0.29928568,90143.0,90142.0,0.01910037]
[1765153129271,0.29928568,90143.0,90142.0,0.01410037]
[1765153129272,0.62128568,90143.0,90142.0,0.01410037]
[1765153129603,0.61928568,90143.0,90142.0,0.00110037]
[1765153129758,0.62528568,90143.0,90142.0,0.00110037]
[1765153130167,0.62428568,90143.0,90142.0,0.00010037]
[1765153130457,0.63128568,90143.0,90142.0,0.00110037]
[1765153131071,0.74099074,90143.0,90142.0,0.00110037]
[1765153131725,0.63128568,90143.0,90142.0,0.00110037]
[1765153134199,1.24127868,90143.0,90142.0,0.00110037]
[1765153134983,0.99717769,90143.0,90142.0,0.00110037]
[1765153135236,1.01937368,90143.0,90142.0,0.00110037]
[1765153135815,1.00703368,90143.0,90142.0,0.00110037]
[1765153136831,1.07039887,90143.0,90142.0,0.00110037]
[1765153137815,0.22193863,90115.0,90114.0,0.00023936]
[1765153138020,0.26520462,90115.0,90114.0,0.00063118]
[1765153138221,0.28875462,90115.0,90114.0,0.00063118]
[1765153139151,0.29036749,90115.0,90114.0,0.00063118]
[1765153139939,0.30336749,90115.0,90114.0,0.00063118]
[1765153140375,0.29736749,90115.0,90114.0,0.00063118]
[1765153140550,0.29436749,90115.0,90114.0,0.00063118]
[1765153140756,0.2771715,90115.0,90114.0,0.00063118]
[1765153141334,0.37766265,90115.0,90114.0,0.00063118]
[1765153141982,0.2771715,90115.0,90114.0,0.00063118]
[1765153142155,0.2325515,90115.0,90114.0,0.00063118]
[1765153142982,0.2476315,90115.0,90114.0,0.00063118]
[1765153143149,0.2711815,90115.0,90114.0,0.00063118]
[1765153143573,0.29337749,90115.0,90114.0,0.00063118]
[1765153143768,0.39442364,90115.0,90114.0,0.00063118]
[1765153144396,0.71242364,90115.0,90114.0,0.00063118]
[1765153144820,0.71942364,90115.0,90114.0,0.00063118]
[1765153145199,0.71542364,90115.0,90114.0,0.00063118]
[1765153145544,0.5981815,90115.0,90114.0,0.00063118]
[1765153145700,0.6157415,90115.0,90114.0,0.00063118]
[1765153145894,0.5851815,90115.0,90114.0,0.00063118]
[1765153146096,0.6027415,90115.0,90114.0,0.00063118]
[1765153146298,0.6207415,90115.0,90114.0,0.00063118]
[1765153146505,0.64293749,90115.0,90114.0,0.00063118]
[1765153149236,0.2977415,90115.0,90114.0,0.00063118]
[1765153149608,0.2801815,90115.0,90114.0,0.00063118]
[1765153149926,0.2977415,90115.0,90114.0,0.00063118]
[1765153150618,0.2801815,90115.0,90114.0,0.00063118]
[1765153150821,0.2741915,90115.0,90114.0,0.00063118]
[1765153151054,0.2415515,90115.0,90114.0,0.00063118]
[1765153152006,0.2235515,90115.0,90114.0,0.00063118]
[1765153152184,0.2285515,90115.0,90114.0,0.00063118]
[1765153152861,0.2325515,90115.0,90114.0,0.00063118]
[1765153154124,0.2706115,90115.0,90114.0,0.00063118]
[1765153154366,0.36938105,90115.0,90114.0,0.00063118]
[1765153154574,0.29280749,90115.0,90114.0,0.00063118]
[1765153155447,0.61580749,90115.0,90114.0,0.00063118]
[1765153156142,0.61080749,90115.0,90114.0,0.00063118]
[1765153156566,0.61480749,90115.0,90114.0,0.00063118]
[1765153157875,1.71791849,90115.0,90114.0,0.00063118]
[1765153158216,1.82762355,90115.0,90114.0,0.00063118]
[1765153158746,1.82762355,90115.0,90070.0,0.0004]
[1765153158747,0.22204705,90071.0,90070.0,0.0004]
[1765153158968,0.29986304,90071.0,90070.0,0.0004]
[1765153159177,0.27927992,90071.0,90070.0,0.0004]
[1765153159402,0.30147591,90071.0,90070.0,0.0004]
[1765153160012,0.30186864,90071.0,90070.0,0.0004]
[1765153160842,0.26211265,90071.0,90070.0,0.0004]
[1765153161042,0.26367265,90071.0,90070.0,0.0004]
[1765153161758,0.27467265,90071.0,90070.0,0.0004]
[1765153161921,0.24611265,90071.0,90070.0,0.0004]
[1765153162120,0.23911265,90071.0,90070.0,0.0004]
[1765153162326,0.25111265,90071.0,90070.0,0.0004]
[1765153162526,0.24411265,90071.0,90070.0,0.0004]
[1765153162767,0.23911265,90071.0,90070.0,0.0004]
[1765153162966,0.24511265,90071.0,90070.0,0.0004]
[1765153163172,0.23005265,90071.0,90070.0,0.0004]
[1765153163367,0.24511265,90071.0,90070.0,0.0004]
[1765153163803,0.26811265,90071.0,90070.0,0.0004]
[1765153164464,0.26811265,90071.0,90070.0,0.00171717]
[1765153164648,0.27311265,90071.0,90070.0,0.00171717]
[1765153166481,0.23505265,90071.0,90070.0,0.00171717]
[1765153166687,0.23343978,90071.0,90070.0,0.01744717]
[1765153166881,0.23343978,90071.0,90070.0,0.00171717]
[1765153167085,0.25982978,90071.0,90070.0,0.00171717]
[1765153167331,0.28282978,90071.0,90070.0,0.00171717]
[1765153167746,0.27182978,90071.0,90070.0,0.00171717]
[1765153167978,0.27882978,90071.0,90070.0,0.00171717]
[1765153168327,0.29502577,90071.0,90070.0,0.00171717]
[1765153168526,0.29402577,90071.0,90070.0,0.00171717]
[1765153168863,0.30602577,90071.0,90070.0,0.00171717]
[1765153170350,0.30763864,90071.0,90070.0,0.00171717]
[1765153174055,0.24738265,90071.0,90070.0,0.00171717]
[1765153174675,0.23443978,90071.0,90070.0,0.00171717]
[1765153175705,0.34892831,90071.0,90070.0,0.00171717]
[1765153175882,0.3711243,90071.0,90070.0,0.00171717]
[1765153176416,0.3641243,90071.0,90070.0,0.00171717]
[1765153176618,0.3641243,90071.0,90060.0,0.0002]
[1765153176619,0.61069577,90071.0,90060.0,0.0002]